bitfinex/quotes_BTCUSD_20250523
["timestamp","ask_amount","ask_price","bid_price","bid_amount"]
[1747984916920,0.02615488,110680.0,110670.0,4.84274428]
[1747984917332,0.01712007,110680.0,110670.0,4.84574428]
[1747984917534,0.02615488,110680.0,110670.0,4.84574428]
[1747984917745,0.01712007,110680.0,110670.0,4.84574428]
[1747984917958,5.103e-05,110680.0,110670.0,4.84574428]
[1747984918161,0.00908535,110680.0,110670.0,4.90104428]
[1747984918370,5.103e-05,110680.0,110670.0,4.90104428]
[1747984919408,5.103e-05,110680.0,110670.0,4.27892428]
[1747984919552,5.103e-05,110680.0,110670.0,4.90112428]
[1747984920033,0.00908543,110680.0,110670.0,4.90112428]
[1747984920159,0.00908535,110680.0,110670.0,4.90112428]
[1747984920603,0.01811983,110680.0,110670.0,4.57514428]
[1747984920803,0.05465447,110680.0,110670.0,3.76527928]
[1747984921005,0.01811983,110680.0,110670.0,3.75125928]
[1747984921163,0.00908535,110680.0,110670.0,3.75125928]
[1747984922045,0.01811983,110680.0,110670.0,3.75125928]
[1747984922464,0.27139097,110680.0,110670.0,2.25953744]
[1747984922664,0.26235657,110680.0,110670.0,2.07925323]
[1747984922877,0.25332201,110680.0,110670.0,0.69752]
[1747984923086,0.25332201,110680.0,110670.0,0.346]
[1747984923294,0.25332201,110680.0,110670.0,1.17230893]
[1747984923502,0.25332201,110680.0,110670.0,1.18134439]
[1747984923914,0.00908559,110680.0,110670.0,4.84210939]
[1747984924136,0.02715472,110680.0,110670.0,4.85114469]
[1747984925149,0.01811991,110680.0,110670.0,4.85114469]
[1747984925361,0.00908535,110680.0,110670.0,4.85114469]
[1747984925566,0.02715431,110680.0,110670.0,4.87894469]
[1747984925774,0.02715431,110680.0,110670.0,4.85114469]
[1747984926007,0.02715431,110680.0,110670.0,4.51114469]
[1747984926222,0.03618895,110680.0,110670.0,4.51114469]
[1747984926430,0.02715431,110680.0,110670.0,4.51114469]
[1747984926603,0.03618903,110680.0,110670.0,4.56114469]
[1747984927231,0.02715431,110680.0,110670.0,4.56114469]
[1747984927381,5.103e-05,110680.0,110670.0,4.56114469]
[1747984927587,0.01812015,110680.0,110670.0,4.56114469]
[1747984927991,0.01812007,110680.0,110670.0,4.56114469]
[1747984928190,0.22592569,110680.0,110670.0,4.344285]
[1747984928392,0.25242201,110680.0,110670.0,0.68352]
[1747984929650,0.25242201,110680.0,110670.0,0.68356]
[1747984929651,0.34196757,110680.0,110670.0,0.68356]
[1747984932716,0.34196757,110680.0,110670.0,0.32672]
[1747984935783,0.34196757,110680.0,110660.0,0.21687952]
[1747984935940,0.24415331,110670.0,110660.0,0.44852756]
[1747984936138,0.24415331,110670.0,110660.0,4.10929256]
[1747984936367,0.25314844,110670.0,110660.0,4.10929288]
[1747984937043,0.25314844,110670.0,110660.0,4.38001288]
[1747984937235,0.24415257,110670.0,110660.0,4.38001288]
[1747984937761,0.24415331,110670.0,110660.0,4.49121197]
[1747984938182,0.24415331,110670.0,110660.0,4.48721197]
[1747984938388,0.24415331,110670.0,110660.0,4.49624841]
[1747984938523,0.24415331,110670.0,110660.0,4.49824841]
[1747984938737,0.24415331,110670.0,110660.0,4.294405]
[1747984938974,0.24415331,110670.0,110660.0,4.30344168]
[1747984939181,0.24415331,110670.0,110660.0,4.29944168]
[1747984941484,0.24415331,110670.0,110660.0,4.48921205]
[1747984942354,0.25318893,110670.0,110660.0,4.49824857]
[1747984942563,0.25318893,110670.0,110660.0,4.48921205]
[1747984942996,0.25318893,110670.0,110660.0,4.48017545]
[1747984943223,0.25318893,110670.0,110660.0,4.48921205]
[1747984945170,0.25318893,110670.0,110660.0,4.48017545]
[1747984945376,0.25318893,110670.0,110660.0,4.28811045]
[1747984945608,0.25318893,110670.0,110660.0,4.28564705]
[1747984945771,0.25318893,110670.0,110660.0,4.21564705]
[1747984947262,0.25318893,110670.0,110660.0,4.02587668]
[1747984947465,0.25318893,110670.0,110660.0,3.95534]
[1747984947735,0.24415331,110670.0,110660.0,2.80594]
[1747984947865,0.24415331,110670.0,110660.0,2.90417377]
[1747984948072,0.24415331,110670.0,110660.0,2.72344]
[1747984948281,0.24415331,110670.0,110660.0,2.91321037]
[1747984950062,0.24415331,110670.0,110660.0,2.92224689]
[1747984951140,0.24415331,110670.0,110660.0,3.16241037]
[1747984951344,0.24415331,110670.0,110660.0,3.17144689]
[1747984952903,0.24415331,110670.0,110660.0,3.18048333]
[1747984953130,0.24415331,110670.0,110660.0,3.17144689]
[1747984953340,0.24415331,110670.0,110660.0,3.18048333]
[1747984953549,0.24415331,110670.0,110660.0,3.17144689]
[1747984953925,0.24415331,110670.0,110660.0,3.18048333]
[1747984954061,0.24415331,110670.0,110660.0,3.17144689]
[1747984954264,0.24415331,110670.0,110660.0,2.55288333]
[1747984954467,0.24415331,110670.0,110660.0,3.16768689]
[1747984954668,0.24415331,110670.0,110660.0,3.17672333]
[1747984955390,0.24415331,110670.0,110660.0,3.15865037]
[1747984955668,0.24415331,110670.0,110660.0,3.16768689]
[1747984955852,0.24415331,110670.0,110660.0,2.96888]
[1747984956056,0.24415331,110670.0,110660.0,2.97791668]
[1747984956273,0.24415331,110670.0,110660.0,3.16768705]
[1747984956669,0.24415331,110670.0,110660.0,3.17672357]
[1747984957662,0.24415331,110670.0,110660.0,2.96888]
[1747984957858,0.24415331,110670.0,110660.0,3.15865037]
[1747984958200,0.24415331,110670.0,110660.0,1.8176]
[1747984958201,0.33369887,110670.0,110660.0,1.8176]
[1747984958761,0.33369887,110670.0,110660.0,0.6128]
[1747984960019,0.33369887,110670.0,110660.0,0.80741423]
[1747984960259,0.25592201,110680.0,110670.0,0.53878893]
[1747984960467,0.15573099,110680.0,110670.0,0.55685994]
[1747984960667,0.05595463,110680.0,110670.0,0.55685994]
[1747984960881,0.21689072,110680.0,110670.0,0.55686002]
[1747984961014,0.21689072,110680.0,110670.0,0.54782464]
[1747984961223,0.21689072,110680.0,110670.0,0.55686018]
[1747984961406,0.21689072,110680.0,110670.0,0.56589556]
[1747984961609,0.21689072,110680.0,110670.0,0.54782472]
[1747984961811,0.21789072,110680.0,110670.0,0.55686026]
[1747984962281,0.21789072,110680.0,110670.0,0.56589572]
[1747984962692,0.20885575,110680.0,110670.0,0.55686026]
[1747984962826,0.00105103,110680.0,110670.0,4.28156056]
[1747984963164,0.01912023,110680.0,110670.0,4.25286056]
[1747984963526,0.19982135,110680.0,110670.0,4.22666056]
[1747984964383,0.26338721,110690.0,110670.0,4.21762403]
[1747984964630,0.27242071,110690.0,110680.0,1.15361617]
[1747984964849,0.26338705,110690.0,110680.0,0.97291505]
[1747984965830,0.26338705,110690.0,110680.0,0.96388]
[1747984966174,0.26538705,110690.0,110680.0,0.96388]
[1747984966316,0.26538705,110690.0,110680.0,0.35312]
[1747984967501,0.25635314,110690.0,110680.0,0.62384]
[1747984967849,0.25835314,110690.0,110680.0,0.62384]
[1747984968289,0.25835314,110690.0,110680.0,0.96384]
[1747984973523,0.23105314,110690.0,110680.0,0.97287505]
[1747984973717,0.23105314,110690.0,110680.0,0.96384]
[1747984976968,0.20475217,110690.0,110680.0,1.16261081]
[1747984977168,0.22281985,110690.0,110680.0,4.85941045]
[1747984977340,0.22281977,110690.0,110680.0,4.86844501]
[1747984977642,0.21378619,110690.0,110680.0,4.90367949]
[1747984978074,0.21378619,110690.0,110680.0,4.89464501]
[1747984978249,0.21378619,110690.0,110680.0,4.88561045]
[1747984978400,0.21378619,110690.0,110680.0,4.87657581]
[1747984978601,0.21378619,110690.0,110680.0,4.88561045]
[1747984979053,0.22282026,110690.0,110680.0,4.85037581]
[1747984979455,0.22282026,110690.0,110680.0,4.8503759]
[1747984980225,0.22282026,110690.0,110680.0,4.651605]
[1747984980426,0.22282091,110690.0,110680.0,1.76024]
[1747984980644,0.22282091,110690.0,110680.0,1.43887505]
[1747984980962,0.25182091,110690.0,110680.0,1.62861114]
[1747984981316,0.25182091,110690.0,110680.0,1.63764603]
[1747984981452,0.25182091,110690.0,110680.0,1.62861114]
[1747984982138,0.25182091,110690.0,110680.0,1.63764595]
[1747984982307,0.22282091,110690.0,110680.0,1.63764603]
[1747984983408,0.22282091,110690.0,110680.0,1.62861114]
[1747984983817,0.22282091,110690.0,110680.0,1.15912]
[1747984984020,0.26055309,110690.0,110680.0,1.42984]
[1747984993051,0.23355309,110690.0,110680.0,1.42984]
[1747984993253,0.23355309,110690.0,110680.0,1.61054112]
[1747984993456,0.20475309,110690.0,110680.0,1.43887505]
[1747984993657,0.20475309,110690.0,110680.0,1.42984]
[1747984993798,0.25985309,110690.0,110680.0,1.4298]
[1747984994934,0.25985309,110690.0,110680.0,0.69312]
[1747984995166,0.25985309,110690.0,110680.0,0.9638]
[1747984996260,0.24577902,110690.0,110680.0,0.9638]
[1747985006139,0.24577902,110690.0,110680.0,1.14450112]
[1747985006140,0.22741301,110690.0,110680.0,1.14450112]
[1747985006391,0.22741301,110690.0,110680.0,0.9638]
[1747985006523,0.22741301,110690.0,110680.0,0.97283505]
[1747985006729,0.22741301,110690.0,110680.0,0.9638]
[1747985007342,0.22741301,110690.0,110680.0,0.97283505]
[1747985010345,0.0099935,110690.0,110680.0,4.82333606]
[1747985010555,0.19971204,110690.0,110680.0,4.84140526]
[1747985011173,0.20874595,110690.0,110680.0,4.84140534]
[1747985011742,0.21777994,110690.0,110680.0,4.84140542]
[1747985011942,0.21777986,110690.0,110680.0,4.84140542]
[1747985012149,0.21777986,110690.0,110680.0,4.56169087]
[1747985012356,0.22681401,110690.0,110680.0,4.84140559]
[1747985012783,0.21777986,110690.0,110680.0,4.84140559]
[1747985012995,0.24438099,110690.0,110680.0,4.624565]
[1747985013201,0.25391317,110690.0,110680.0,0.96268]
[1747985013851,0.34345873,110690.0,110680.0,0.96268]
[1747985022669,0.27119035,110690.0,110680.0,1.15241609]
[1747985022877,0.29829199,110690.0,110680.0,1.1614509]
[1747985023049,0.29829199,110690.0,110680.0,1.1704857]
[1747985023250,0.29829199,110690.0,110680.0,1.16145098]
[1747985023414,0.30732622,110690.0,110680.0,1.17048579]
[1747985024198,0.29829199,110690.0,110680.0,1.17048579]
[1747985024397,0.29829199,110690.0,110680.0,1.17952051]
[1747985026277,0.30732614,110690.0,110680.0,1.17952051]
[1747985027094,0.30732614,110690.0,110680.0,1.16145098]
[1747985027400,0.33462614,110690.0,110680.0,1.1704857]
[1747985028199,0.22701236,110690.0,110680.0,1.17952018]
[1747985028398,0.19971236,110690.0,110680.0,1.17952018]
[1747985028596,0.20874651,110690.0,110680.0,1.15241609]
[1747985028800,0.26594651,110690.0,110680.0,1.16145098]
[1747985030353,0.26594651,110690.0,110680.0,1.15241609]
[1747985030644,0.26594651,110690.0,110680.0,1.16145098]
[1747985035212,0.26594651,110690.0,110680.0,1.1517074]
[1747985035855,0.26594651,110690.0,110680.0,1.15099859]
[1747985036432,0.25691285,110690.0,110680.0,0.96055369]
[1747985036872,0.25691285,110690.0,110680.0,0.96958874]
[1747985037548,0.25691285,110690.0,110680.0,1.15028986]
[1747985037697,0.25691285,110690.0,110680.0,1.15932483]
[1747985039366,0.25691285,110690.0,110680.0,1.15028986]
[1747985039765,0.25691285,110690.0,110680.0,1.15932475]
[1747985040591,0.25691285,110690.0,110680.0,1.16835956]
[1747985041192,0.25691285,110690.0,110680.0,1.17739428]
[1747985041443,0.22871236,110690.0,110680.0,1.17739428]
[1747985041640,0.23774643,110690.0,110680.0,1.18642884]
[1747985041849,0.00096,110690.0,110680.0,4.83815887]
[1747985042055,0.01902757,110690.0,110680.0,4.84719335]
[1747985042474,0.00999366,110690.0,110680.0,4.84719335]
[1747985042675,0.01902749,110690.0,110680.0,4.84719335]
[1747985043748,0.02806148,110690.0,110680.0,4.84719335]
[1747985043973,0.20874627,110690.0,110680.0,4.83815887]
[1747985044160,0.24558042,110690.0,110680.0,4.83815887]
[1747985044470,0.23654627,110690.0,110680.0,4.84719302]
[1747985045146,0.04682749,110690.0,110680.0,4.84719302]
[1747985045353,0.01902725,110690.0,110680.0,4.84719302]
[1747985045565,0.20874603,110690.0,110680.0,4.84719302]
[1747985047321,0.20874603,110690.0,110680.0,4.50931933]
[1747985047936,0.19971204,110690.0,110680.0,4.50931933]
[1747985048135,0.01902725,110690.0,110680.0,4.50931933]
[1747985048295,0.02806116,110690.0,110680.0,4.50931933]
[1747985048493,0.01902725,110690.0,110680.0,4.50931933]
[1747985048722,0.21777994,110690.0,110680.0,4.50931933]
[1747985049336,0.21777994,110690.0,110680.0,4.84931933]
[1747985050018,0.02806108,110690.0,110680.0,4.84931933]
[1747985050187,0.21777986,110690.0,110680.0,4.84931933]
[1747985050606,0.01902716,110690.0,110680.0,4.84931933]
[1747985050809,0.02806099,110690.0,110680.0,4.84931933]
[1747985051183,0.00096,110690.0,110680.0,4.84931933]
[1747985051339,0.01902716,110690.0,110680.0,4.84931933]
[1747985051755,0.02806107,110690.0,110680.0,4.84931933]
[1747985052111,0.02806099,110690.0,110680.0,4.84931933]
[1747985052776,0.03709498,110690.0,110680.0,4.84931933]
[1747985053360,0.0370949,110690.0,110680.0,4.84931933]
[1747985055908,0.04612897,110690.0,110680.0,4.84931933]
[1747985058389,0.02806099,110690.0,110680.0,4.84931933]
[1747985058787,0.01902716,110690.0,110680.0,4.87641933]
[1747985058978,0.02806099,110690.0,110680.0,4.87641933]
[1747985059323,0.02710099,110690.0,110680.0,4.87641933]
[1747985059980,0.02710099,110690.0,110680.0,4.84931933]
[1747985061229,0.01806716,110690.0,110680.0,4.84931933]
[1747985061427,0.02530099,110690.0,110680.0,4.90381933]
[1747985062007,0.02530099,110690.0,110680.0,4.87611933]
[1747985062418,0.02530099,110690.0,110680.0,4.84931933]
[1747985062635,0.03433506,110690.0,110680.0,4.84931933]
[1747985063084,0.03433498,110690.0,110680.0,4.84931933]
[1747985063374,0.01626716,110690.0,110680.0,4.84931933]
[1747985063537,0.02530099,110690.0,110680.0,4.84931933]
[1747985064354,0.01626716,110690.0,110680.0,4.84931933]
[1747985064559,0.02530099,110690.0,110680.0,4.84931933]
[1747985066179,0.01626716,110690.0,110680.0,4.84931933]
[1747985066380,0.01626716,110690.0,110680.0,4.90521933]
[1747985066909,0.01626716,110690.0,110680.0,4.87641933]
[1747985068191,0.01626716,110690.0,110680.0,4.84931933]
[1747985072657,0.01626716,110690.0,110680.0,4.57863933]
[1747985072870,0.02530099,110690.0,110680.0,4.84931933]
[1747985073072,0.06123498,110690.0,110680.0,4.84931933]
[1747985073282,0.25295261,110690.0,110680.0,4.19315098]
[1747985073484,0.26198668,110690.0,110680.0,3.7112857]
[1747985073687,0.26198668,110690.0,110680.0,3.53961914]
[1747985073908,0.08130189,110690.0,110680.0,3.72032026]
[1747985074104,0.08130189,110690.0,110680.0,3.72935474]
[1747985075221,0.07226782,110690.0,110680.0,3.72935474]
[1747985075816,0.08130189,110690.0,110680.0,3.72935474]
[1747985076220,0.07226782,110690.0,110680.0,3.72935474]
[1747985076862,0.08130189,110690.0,110680.0,3.72935474]
[1747985077053,0.07226782,110690.0,110680.0,3.72935474]
[1747985077192,0.07226782,110690.0,110680.0,4.11911474]
[1747985078188,0.07226741,110690.0,110680.0,4.11911474]
[1747985079359,0.06323358,110690.0,110680.0,4.11911474]
[1747985079560,0.06163285,110700.0,110690.0,0.54778651]
[1747985079766,0.07066594,110700.0,110690.0,0.54778651]
[1747985080795,0.07066594,110700.0,110690.0,4.20855151]
[1747985081005,0.06263285,110700.0,110690.0,4.20855151]
[1747985081210,0.002,110700.0,110690.0,4.20855151]
[1747985081923,0.08049642,110710.0,110700.0,0.54776775]
[1747985082119,0.08058868,110710.0,110700.0,4.83017275]
[1747985082276,0.27027327,110710.0,110700.0,4.83017275]
[1747985082482,0.27930579,110710.0,110700.0,4.83017275]
[1747985082683,0.27027384,110710.0,110700.0,4.8211399]
[1747985083269,0.27027384,110710.0,110700.0,4.83017291]
[1747985083748,0.26124165,110710.0,110700.0,4.82113998]
[1747985083948,0.25220937,110710.0,110700.0,4.82113998]
[1747985084756,0.25220937,110710.0,110700.0,4.82114007]
[1747985085536,0.25220937,110710.0,110700.0,4.81210689]
[1747985086625,0.25220937,110710.0,110700.0,4.622405]
[1747985088728,0.25220937,110710.0,110700.0,4.63143842]
[1747985088998,0.25220937,110710.0,110700.0,4.81210689]
[1747985089242,0.25220904,110710.0,110700.0,4.83017316]
[1747985089446,0.27027359,110710.0,110700.0,4.83017332]
[1747985089669,0.27027359,110710.0,110700.0,4.82114015]
[1747985090145,0.27027359,110710.0,110700.0,4.83017332]
[1747985090371,0.27027359,110710.0,110700.0,4.82114015]
[1747985092700,0.27027359,110710.0,110700.0,5.21086015]
[1747985093762,0.24317636,110710.0,110700.0,5.21086015]
[1747985093947,0.22590855,110710.0,110700.0,5.22892625]
[1747985094394,0.22590855,110710.0,110700.0,5.2379591]
[1747985094610,0.20784067,110710.0,110700.0,5.2379591]
[1747985094816,0.20784067,110710.0,110700.0,5.22892625]
[1747985095568,0.20784067,110710.0,110700.0,5.23795918]
[1747985095917,0.20784067,110710.0,110700.0,5.22892576]
[1747985096755,0.20784067,110710.0,110700.0,5.23795861]
[1747985096756,0.23454067,110710.0,110700.0,5.23795861]
[1747985096954,0.27057319,110710.0,110700.0,1.27038181]
[1747985097205,0.25250921,110710.0,110700.0,1.35132]
[1747985097414,0.32398997,110710.0,110700.0,1.08068]
[1747985097614,0.32398997,110710.0,110700.0,0.74068]
[1747985097757,0.32398997,110710.0,110700.0,1.01132]
[1747985098385,0.32398997,110710.0,110700.0,1.35132]
[1747985100931,0.32398997,110710.0,110700.0,1.08068]
[1747985101115,0.32398997,110710.0,110700.0,1.35136]
[1747985103615,0.32398997,110710.0,110700.0,0.72972]
[1747985103823,0.35108712,110710.0,110700.0,1.36035342]
[1747985103990,0.34205493,110710.0,110700.0,1.35132]
[1747985104224,0.25250937,110710.0,110700.0,1.55005507]
[1747985104434,0.25250937,110710.0,110700.0,1.54102181]
[1747985104632,0.25250937,110710.0,110700.0,1.55005498]
[1747985105014,0.22550937,110710.0,110700.0,1.55005498]
[1747985105316,0.23454164,110710.0,110700.0,1.55005498]
[1747985105514,0.26034164,110710.0,110700.0,1.55005498]
[1747985105842,0.26034164,110710.0,110700.0,1.55005507]
[1747985106051,0.25130945,110710.0,110700.0,1.54102189]
[1747985106382,0.25130945,110710.0,110700.0,1.55005523]
[1747985106820,0.25130945,110710.0,110700.0,1.55908849]
[1747985107252,0.24227701,110710.0,110700.0,1.54102189]
[1747985107477,0.23324441,110710.0,110700.0,1.08064]
[1747985107793,0.23324441,110710.0,110700.0,1.35132]
[1747985108883,0.32278997,110710.0,110700.0,0.72972]
[1747985109055,0.32278997,110710.0,110700.0,1.35088]
[1747985109468,0.32278997,110710.0,110700.0,0.72972]
[1747985109648,0.32278997,110710.0,110700.0,1.35088]
[1747985112508,0.32278997,110710.0,110700.0,0.62116]
[1747985113336,0.24170189,110700.0,110690.0,0.38972]
[1747985113517,0.33124745,110700.0,110690.0,1.01088]
[1747985113922,0.24284205,110680.0,110670.0,0.18975306]
[1747985114118,0.24284205,110680.0,110670.0,3.85051806]
[1747985114368,0.24284205,110680.0,110670.0,2.2395]
[1747985114580,0.25227285,110680.0,110670.0,1.6063]
[1747985114941,0.24627285,110680.0,110670.0,1.6063]
[1747985115288,0.24627285,110680.0,110670.0,2.61718]
[1747985115953,0.24327285,110680.0,110670.0,2.61718]
[1747985116536,0.25230733,110680.0,110670.0,2.62118]
[1747985116740,0.21577236,110680.0,110670.0,2.63421587]
[1747985116959,0.21577236,110680.0,110670.0,2.8239691]
[1747985117278,0.22480733,110680.0,110670.0,2.3545]
[1747985117493,0.25250733,110680.0,110670.0,2.62518]
[1747985117693,0.24347277,110680.0,110670.0,1.2785]
[1747985117905,0.23443796,110680.0,110670.0,1.54918]
[1747985118282,0.23443796,110680.0,110670.0,1.53138]
[1747985118488,0.23443796,110680.0,110670.0,1.52738]
[1747985118713,0.23443796,110680.0,110670.0,1.52338]
[1747985118891,0.23443796,110680.0,110670.0,1.52538]
[1747985119221,0.24347268,110680.0,110670.0,1.52738]
[1747985120542,0.24347268,110680.0,110670.0,1.35488]
[1747985121089,0.24347268,110680.0,110670.0,1.0842]
[1747985121290,0.24347268,110680.0,110670.0,1.35488]
[1747985122158,0.24347268,110680.0,110670.0,0.73372]
[1747985122406,0.24347268,110680.0,110670.0,1.35492]
[1747985123636,0.24347268,110680.0,110670.0,1.08424]
[1747985123788,0.23443796,110680.0,110670.0,1.35492]
[1747985123987,0.32398352,110680.0,110670.0,1.35492]
[1747985124223,0.32398352,110680.0,110670.0,0.73372]
[1747985124426,0.32398352,110680.0,110670.0,1.01492]
[1747985124628,0.32398352,110680.0,110670.0,1.35492]
[1747985125223,0.32398352,110680.0,110670.0,1.35292]
[1747985126069,0.32398352,110680.0,110670.0,1.35092]
[1747985130334,0.32498352,110680.0,110670.0,1.35092]
[1747985130523,0.32698352,110680.0,110670.0,1.35092]
[1747985136648,0.32698352,110680.0,110670.0,1.35096]
[1747985141764,0.32698352,110680.0,110670.0,0.96124]
[1747985145063,0.29928352,110680.0,110670.0,0.96124]
[1747985147558,0.32818352,110680.0,110670.0,0.96124]
[1747985150451,0.18373747,110680.0,110670.0,4.81175823]
[1747985150671,0.19277211,110680.0,110670.0,4.678305]
[1747985150895,0.201807,110680.0,110670.0,4.649005]
[1747985152717,0.21084197,110680.0,110670.0,4.649005]
[1747985153890,0.20180749,110680.0,110670.0,4.622005]
[1747985154541,0.20180749,110680.0,110670.0,4.281645]
[1747985156815,0.21937285,110680.0,110670.0,4.010925]
[1747985157041,0.24657285,110680.0,110670.0,3.2204]
[1747985157300,0.24657285,110680.0,110670.0,1.80558]
[1747985160635,0.24657285,110680.0,110670.0,2.19542]
[1747985163460,0.21937285,110680.0,110670.0,2.19542]
[1747985171142,0.24697285,110680.0,110670.0,2.53542]
[1747985173427,0.21937285,110680.0,110670.0,2.53542]
[1747985176837,0.21937285,110680.0,110670.0,2.37160599]
[1747985177299,0.21937285,110680.0,110670.0,4.847671]
[1747985177715,0.19277285,110680.0,110670.0,4.847671]
[1747985178390,0.19277285,110680.0,110670.0,4.875271]
[1747985179040,0.19277252,110680.0,110670.0,4.875271]
[1747985179250,0.21084197,110680.0,110670.0,4.875271]
[1747985179454,0.21084189,110680.0,110670.0,4.875271]
[1747985179654,0.20180692,110680.0,110670.0,5.06502414]
[1747985179884,0.19277203,110680.0,110670.0,5.07405985]
[1747985180084,0.24580189,110700.0,110680.0,0.57410545]
[1747985180298,0.1897014,110700.0,110690.0,1.15027886]
[1747985180528,0.21680067,110700.0,110690.0,0.99719423]
[1747985180666,0.21680059,110700.0,110690.0,0.96056]
[1747985180866,0.23566791,110700.0,110690.0,0.96056]
[1747985181482,0.23666791,110700.0,110690.0,0.96056]
[1747985182214,0.23866791,110700.0,110690.0,0.96056]
[1747985182906,0.22963498,110700.0,110690.0,0.96056]
[1747985184495,0.22060181,110700.0,110690.0,0.96056]
[1747985186269,0.24990181,110700.0,110690.0,0.96052]
[1747985188500,0.24990181,110700.0,110690.0,1.35032]
[1747985189692,0.24990181,110700.0,110690.0,0.7298]
[1747985189894,0.24990181,110700.0,110690.0,1.35028]
[1747985189895,0.33944737,110700.0,110690.0,1.35028]
[1747985191494,0.33944737,110700.0,110690.0,1.0796]
[1747985191715,0.33944737,110700.0,110690.0,1.35028]
[1747985194100,0.33944737,110700.0,110690.0,0.7298]
[1747985194300,0.33944737,110700.0,110690.0,1.35028]
[1747985200243,0.22060181,110700.0,110690.0,1.35028]
[1747985200585,0.2017349,110700.0,110690.0,1.53999886]
[1747985200913,0.01203285,110700.0,110690.0,5.08231743]
[1747985201125,0.003,110700.0,110690.0,5.07328377]
[1747985201353,0.21980043,110700.0,110690.0,5.0823176]
[1747985201725,0.21980034,110700.0,110690.0,5.07328369]
[1747985201933,0.02106553,110700.0,110690.0,5.10971735]
[1747985202133,0.01203277,110700.0,110690.0,5.10971735]
[1747985202483,0.20173425,110700.0,110690.0,5.10971735]
[1747985202889,0.01203277,110700.0,110690.0,5.10971735]
[1747985203798,0.20173417,110700.0,110690.0,5.10971735]
[1747985204010,0.19270124,110700.0,110690.0,5.10971735]
[1747985204435,0.20173409,110700.0,110690.0,5.10971735]
[1747985205737,0.20173409,110700.0,110690.0,5.09164986]
[1747985205939,0.21076702,110700.0,110690.0,5.10068377]
[1747985206102,0.21980003,110700.0,110690.0,5.11875135]
[1747985206327,0.21980003,110700.0,110690.0,5.1097176]
[1747985207918,0.21980003,110700.0,110690.0,5.0823176]
[1747985208378,0.21980003,110700.0,110690.0,5.07328377]
[1747985208761,0.2288332,110700.0,110690.0,5.06424994]
[1747985209164,0.21980003,110700.0,110690.0,5.06424994]
[1747985210136,0.21980003,110700.0,110690.0,5.07328401]
[1747985210577,0.21980003,110700.0,110690.0,5.06424994]
[1747985211013,0.2288332,110700.0,110690.0,5.06424994]
[1747985212244,0.21980003,110700.0,110690.0,5.06424994]
[1747985212590,0.22883312,110700.0,110690.0,5.06424994]
[1747985213908,0.22883312,110700.0,110690.0,5.03694994]
[1747985215628,0.22883312,110700.0,110690.0,5.04598401]
[1747985215808,0.22883312,110700.0,110690.0,5.03694994]
[1747985216183,0.21980003,110700.0,110690.0,5.06454994]
[1747985216505,0.21980003,110700.0,110690.0,5.07358401]
[1747985218325,0.21980003,110700.0,110690.0,5.082618]
[1747985218649,0.21076702,110700.0,110690.0,5.07358401]
[1747985218814,0.2107671,110700.0,110690.0,5.07358401]
[1747985219211,0.2107671,110700.0,110690.0,5.08261792]
[1747985220109,0.20173409,110700.0,110690.0,5.08261792]
[1747985220313,0.19270132,110700.0,110690.0,5.11965167]
[1747985220518,0.19270132,110700.0,110690.0,5.09165167]
[1747985221359,0.19270124,110700.0,110690.0,5.10068533]
[1747985221704,0.003,110700.0,110690.0,5.12938533]
[1747985223743,0.19880872,110710.0,110700.0,0.52970181]
[1747985223950,0.19880872,110710.0,110700.0,4.03568598]
[1747985224160,0.20784116,110710.0,110700.0,4.03568598]
[1747985224363,0.23414116,110710.0,110700.0,4.03568607]
[1747985224570,0.23414116,110710.0,110700.0,4.04471924]
[1747985224982,0.24317368,110710.0,110700.0,4.03568607]
[1747985225191,0.24317368,110710.0,110700.0,4.03768607]
[1747985226005,0.24317368,110710.0,110700.0,4.03968607]
[1747985226723,0.23414116,110710.0,110700.0,4.03968607]
[1747985226921,0.24317376,110710.0,110700.0,4.03968607]
[1747985227823,0.24317376,110710.0,110700.0,4.03065281]
[1747985228032,0.24317376,110710.0,110700.0,3.840951]
[1747985228256,0.24317376,110710.0,110700.0,3.84998442]
[1747985228884,0.24317376,110710.0,110700.0,3.840951]
[1747985230353,0.23414116,110710.0,110700.0,4.190391]
[1747985230798,0.24317376,110710.0,110700.0,4.19942442]
[1747985230997,0.24317376,110710.0,110700.0,4.190391]
[1747985231153,0.24317376,110710.0,110700.0,4.19942442]
[1747985231359,0.24317376,110710.0,110700.0,4.190391]
[1747985231954,0.23414116,110710.0,110700.0,4.38912606]
[1747985232150,0.24317376,110710.0,110700.0,4.38912623]
[1747985232361,0.24317376,110710.0,110700.0,4.19942442]
[1747985232576,0.24317376,110710.0,110700.0,4.190391]
[1747985233612,0.27027376,110710.0,110700.0,4.461031]
[1747985234076,0.27027376,110710.0,110700.0,4.47006442]
[1747985234586,0.27027376,110710.0,110700.0,4.47909776]
[1747985234988,0.27027376,110710.0,110700.0,4.47006442]
[1747985235127,0.27027376,110710.0,110700.0,4.85978442]
[1747985236613,0.24317376,110710.0,110700.0,5.04045289]
[1747985236745,0.24317376,110710.0,110700.0,4.850751]
[1747985236956,0.27187376,110710.0,110700.0,4.85978442]
[1747985237612,0.27187376,110710.0,110700.0,4.81023342]
[1747985237756,0.27187376,110710.0,110700.0,4.68123342]
[1747985239451,0.25380945,110710.0,110700.0,2.7787]
[1747985239681,0.25380945,110710.0,110700.0,1.7652]
[1747985239918,0.24477701,110710.0,110700.0,0.73372]
[1747985240117,0.33432257,110710.0,110700.0,1.35348]
[1747985242540,0.33432257,110710.0,110700.0,1.35148]
[1747985242743,0.33432257,110710.0,110700.0,0.73172]
[1747985242941,0.33432257,110710.0,110700.0,1.35048]
[1747985249572,0.33432257,110710.0,110700.0,1.35052]
[1747985250770,0.33432257,110710.0,110700.0,1.35037034]
[1747985250977,0.33432257,110710.0,110700.0,1.07969034]
[1747985251180,0.33432257,110710.0,110700.0,1.35037034]
[1747985251581,0.33432257,110710.0,110700.0,0.96065034]
[1747985252216,0.33432257,110710.0,110700.0,0.96060002]
[1747985253877,0.33432257,110710.0,110700.0,0.34080002]
[1747985254100,0.33432257,110710.0,110700.0,0.96064002]
[1747985256829,0.33432257,110710.0,110700.0,0.68996002]
[1747985257034,0.33432257,110710.0,110700.0,0.001]
[1747985257240,0.33432257,110710.0,110700.0,0.96084]
[1747985257442,0.34886342,110710.0,110700.0,0.341]
[1747985257620,0.34886342,110710.0,110700.0,0.62084]
[1747985258226,0.34886342,110710.0,110700.0,0.96084]
[1747985259928,0.34886342,110710.0,110700.0,0.69016]
[1747985260139,0.34886342,110710.0,110700.0,0.96084]
[1747985262296,0.34986342,110710.0,110700.0,0.95984]
[1747985262649,0.35086342,110710.0,110700.0,0.95984]
[1747985263058,0.35086342,110710.0,110700.0,0.68916]
[1747985263257,0.35086342,110710.0,110700.0,0.95984]
[1747985265125,0.35086342,110710.0,110700.0,0.9596]
[1747985266352,0.34942721,110710.0,110700.0,0.9596]